bitfinex-derivatives/quotes_BTCF0:USTF0_20210705
["timestamp","ask_amount","ask_price","bid_price","bid_amount"]
[1625508299939,0.32157,33830.0,33824.0,0.27724539]
[1625508300240,0.38057,33830.0,33824.0,0.27724539]
[1625508300341,0.38057,33830.0,33824.0,0.21824539]
[1625508300443,0.38057,33830.0,33824.0,0.07274846]
[1625508300740,0.32157,33830.0,33824.0,0.13174846]
[1625508300841,0.32157,33830.0,33824.0,0.059]
[1625508301043,0.62114544,33830.0,33829.0,0.24057544]
[1625508302796,0.56214544,33830.0,33829.0,0.24057544]
[1625508302994,0.24057544,33830.0,33829.0,0.53479544]
[1625508303097,0.059,33830.0,33829.0,0.53479544]
[1625508303397,0.48115088,33837.0,33829.0,0.53479544]
[1625508303497,0.48115088,33837.0,33836.0,4.5223]
[1625508303596,0.48115088,33837.0,33836.0,4.78567]
[1625508304197,0.48115088,33837.0,33836.0,5.07857]
[1625508305048,0.48115088,33837.0,33836.0,5.55972088]
[1625508305702,0.48115088,33837.0,33836.0,5.77844833]
[1625508305802,0.24057544,33845.0,33836.0,5.77844833]
[1625508305901,0.001,33837.0,33836.0,5.83544833]
[1625508306007,0.001,33837.0,33836.0,6.6387272]
[1625508306208,0.001,33837.0,33836.0,6.64222721]
[1625508306307,0.24057544,33845.0,33836.0,7.51693441]
[1625508306406,0.24057544,33845.0,33836.0,7.57393441]
[1625508306505,0.24057544,33845.0,33837.0,0.00349973]
[1625508306606,0.24057544,33845.0,33837.0,0.06249973]
[1625508306727,0.9582,33853.0,33837.0,0.06249973]
[1625508306807,0.9582,33853.0,33837.0,0.12149973]
[1625508306907,0.9582,33853.0,33842.0,0.21881673]
[1625508307011,1.19877544,33853.0,33852.0,0.48115088]
[1625508307108,0.24057544,33853.0,33852.0,0.54015088]
[1625508307210,0.24057544,33853.0,33852.0,0.75642088]
[1625508307959,0.22957544,33853.0,33852.0,0.75642088]
[1625508308259,0.24057544,33860.0,33852.0,0.75642088]
[1625508308361,0.29957544,33860.0,33852.0,0.75642088]
[1625508309061,0.29957544,33860.0,33859.0,0.24057544]
[1625508310112,0.24057544,33860.0,33859.0,0.51466544]
[1625508310212,0.24057544,33860.0,33859.0,0.57366544]
[1625508310761,0.24057544,33863.0,33859.0,0.57366544]
[1625508310862,0.24057544,33867.0,33859.0,0.57366544]
[1625508311063,0.24057544,33867.0,33866.0,0.48115088]
[1625508311163,0.24057544,33867.0,33866.0,0.79460088]
[1625508311816,0.24057544,33867.0,33866.0,4.77160088]
[1625508312015,0.24057544,33873.0,33866.0,4.77160088]
[1625508312217,0.29957544,33873.0,33866.0,4.77160088]
[1625508312315,0.059,33873.0,33866.0,4.83060088]
[1625508312717,0.50043748,33877.0,33866.0,4.83060088]
[1625508312918,0.29957544,33877.0,33866.0,4.83060088]
[1625508313017,0.29957544,33877.0,33876.0,0.48115088]
[1625508313222,0.059,33877.0,33876.0,0.80062088]
[1625508313321,0.50041287,33880.0,33876.0,0.80062088]
[1625508313519,0.41373965,33880.0,33876.0,0.80062088]
[1625508313619,0.32715183,33885.0,33876.0,0.85962088]
[1625508313620,0.84591896,33885.0,33876.0,0.85962088]
[1625508313718,0.90491896,33885.0,33876.0,0.85962088]
[1625508314121,0.96391896,33885.0,33876.0,0.85962088]
[1625508314222,0.35857544,33885.0,33876.0,0.85962088]
[1625508314845,0.35857544,33885.0,33876.0,0.54015088]
[1625508314954,0.25950554,33884.0,33876.0,0.48115088]
[1625508315138,0.48115088,33877.0,33876.0,0.48115088]
[1625508315275,0.89039088,33877.0,33876.0,0.48115088]
[1625508315471,0.83139088,33877.0,33876.0,0.48115088]
[1625508315671,0.89039088,33877.0,33876.0,0.48115088]
[1625508315871,0.83139088,33877.0,33876.0,0.48115088]
[1625508316391,0.917905,33877.0,33876.0,0.48115088]
[1625508316476,0.976905,33877.0,33876.0,0.48115088]
[1625508316777,0.89039088,33877.0,33876.0,0.48115088]
[1625508317075,1.40870714,33877.0,33876.0,0.48115088]
[1625508317177,1.40870714,33877.0,33876.0,0.24057544]
[1625508317583,1.40870714,33877.0,33866.0,4.45815088]
[1625508317791,1.40870714,33877.0,33866.0,0.48115088]
[1625508317892,1.90870714,33877.0,33866.0,0.48115088]
[1625508317994,1.90870714,33877.0,33866.0,0.24057544]
[1625508318129,0.08647268,33875.0,33866.0,0.24057544]
[1625508318228,0.58647268,33875.0,33866.0,0.24057544]
[1625508318327,0.70447268,33875.0,33866.0,0.24057544]
[1625508318459,0.2,33874.0,33866.0,0.24057544]
[1625508318542,0.25926751,33871.0,33866.0,0.24057544]
[1625508318654,0.95926751,33871.0,33849.0,0.057]
[1625508318731,1.07726751,33871.0,33849.0,0.057]
[1625508318833,0.25928102,33868.0,33849.0,0.057]
[1625508318933,0.52263102,33868.0,33849.0,0.057]
[1625508319029,0.64063102,33868.0,33849.0,0.057]
[1625508319133,0.50054544,33861.0,33860.0,0.24057544]
[1625508319229,0.55954544,33861.0,33860.0,0.24057544]
[1625508319331,0.61854544,33861.0,33860.0,0.24057544]
[1625508319733,0.55954544,33861.0,33860.0,0.24057544]
[1625508320333,0.61854544,33861.0,33860.0,0.24057544]
[1625508325398,0.55954544,33861.0,33860.0,0.24057544]
[1625508325498,0.29957544,33861.0,33860.0,0.24057544]
[1625508325648,0.35857544,33861.0,33860.0,0.24057544]
[1625508325748,0.29957544,33861.0,33860.0,0.58110544]
[1625508325948,0.24057544,33864.0,33860.0,0.58110544]
[1625508326148,0.29957544,33864.0,33860.0,0.58110544]
[1625508327101,0.29957544,33864.0,33863.0,0.24057544]
[1625508327599,0.29957544,33864.0,33863.0,0.29957544]
[1625508327751,0.30057544,33864.0,33863.0,0.29957544]
[1625508330005,0.001,33864.0,33863.0,0.29957544]
[1625508330103,0.001,33864.0,33863.0,0.60105544]
[1625508330204,0.84764984,33876.0,33863.0,0.60105544]
[1625508330306,2.85149476,33908.0,33864.0,0.057]
[1625508330307,0.45754663,33877.0,33864.0,0.057]
[1625508330404,0.059,33876.0,33864.0,0.057]
[1625508330504,0.059,33876.0,33864.0,0.116]
[1625508330604,0.45754663,33877.0,33864.0,0.059]
[1625508330704,0.9286,33905.0,33864.0,0.059]
[1625508330705,0.059,33876.0,33865.0,0.00349793]
[1625508330804,0.059,33877.0,33865.0,0.00349793]
[1625508330910,1.20924214,33887.0,33865.0,0.06249793]
[1625508331008,0.059,33877.0,33865.0,0.06249793]
[1625508331109,0.059,33877.0,33876.0,0.72172632]
[1625508331209,0.059,33877.0,33876.0,0.78072632]
[1625508331310,0.059,33877.0,33876.0,1.01468632]
[1625508332062,0.059,33877.0,33876.0,0.95568632]
[1625508332262,0.118,33877.0,33876.0,0.95568632]
[1625508332360,0.118,33877.0,33876.0,0.72172632]
[1625508334869,0.059,33877.0,33876.0,0.72172632]
[1625508338181,0.118,33877.0,33876.0,0.72172632]
[1625508339379,0.059,33877.0,33876.0,0.66272632]
[1625508339780,0.57794129,33877.0,33876.0,0.66272632]
[1625508340680,2.3075773,33877.0,33876.0,0.66272632]
[1625508341231,1.26983028,33877.0,33876.0,0.66272632]
[1625508341831,2.30821857,33877.0,33876.0,0.66272632]
[1625508342332,1.26983028,33877.0,33876.0,0.66272632]
[1625508342729,1.21083028,33877.0,33876.0,0.66272632]
[1625508343131,1.26983028,33877.0,33876.0,0.66272632]
[1625508344582,2.30902609,33877.0,33876.0,0.66272632]
[1625508345032,2.50902609,33877.0,33876.0,0.66272632]
[1625508345232,2.50902609,33877.0,33864.0,0.057]
[1625508345233,2.99017697,33877.0,33872.0,0.24057544]
[1625508345599,3.04917697,33877.0,33872.0,0.24057544]
[1625508345682,2.25232391,33873.0,33872.0,0.24057544]
[1625508345783,2.57695391,33873.0,33872.0,0.24057544]
[1625508345884,2.69495391,33873.0,33872.0,0.24057544]
[1625508346033,2.89495391,33873.0,33872.0,0.24057544]
[1625508346135,4.10769656,33873.0,33872.0,0.24057544]
[1625508346985,4.10769656,33873.0,33866.0,0.24057544]
[1625508347085,0.5,33872.0,33866.0,0.24057544]
[1625508347186,0.48115088,33867.0,33866.0,0.24057544]
[1625508347387,0.59915088,33867.0,33866.0,0.24057544]
[1625508347956,1.11913716,33867.0,33866.0,0.24057544]
[1625508348357,1.81241719,33867.0,33866.0,0.24057544]
[1625508348742,2.85207874,33867.0,33866.0,0.24057544]
[1625508348942,2.85207874,33867.0,33863.0,0.24057544]
[1625508349244,0.48313544,33864.0,33863.0,0.24057544]
[1625508349342,0.54213544,33864.0,33863.0,0.24057544]
[1625508349444,0.60113544,33864.0,33863.0,0.24057544]
[1625508350072,0.54213544,33864.0,33863.0,0.24057544]
[1625508350146,0.48313544,33864.0,33863.0,0.24057544]
[1625508350345,0.29957544,33864.0,33863.0,0.24057544]
[1625508350547,0.66762544,33864.0,33863.0,0.24057544]
[1625508351198,1.18754467,33864.0,33863.0,0.24057544]
[1625508351899,1.88084014,33864.0,33863.0,0.24057544]
[1625508352200,1.6402647,33864.0,33854.0,0.057]
[1625508352301,1.6402647,33864.0,33848.0,0.057]
[1625508352505,1.6402647,33864.0,33848.0,0.116]
[1625508352603,0.51993337,33863.0,33848.0,0.116]
[1625508352802,0.63793337,33863.0,33848.0,0.116]
[1625508352902,0.63793337,33863.0,33848.0,0.057]
[1625508353002,1.13793337,33863.0,33848.0,0.057]
[1625508353106,1.13793337,33863.0,33842.0,0.057]
[1625508353203,1.13793337,33863.0,33860.0,0.24057544]
[1625508353204,0.24057544,33861.0,33860.0,0.24057544]
[1625508353302,0.74057544,33861.0,33860.0,0.24057544]
[1625508353402,0.79957544,33861.0,33860.0,0.24057544]
[1625508353502,0.85857544,33861.0,33860.0,0.24057544]
[1625508353654,0.85857544,33861.0,33856.0,0.24057544]
[1625508353655,4.32507122,33861.0,33856.0,0.24057544]
[1625508353954,1.21337737,33857.0,33856.0,0.24057544]
[1625508354153,2.16001737,33857.0,33849.0,0.24057544]
[1625508354354,3.25901717,33857.0,33849.0,0.24057544]
[1625508354455,3.31801717,33857.0,33849.0,0.24057544]
[1625508354758,0.52011353,33853.0,33849.0,0.24057544]
[1625508354957,0.57911353,33853.0,33849.0,0.24057544]
[1625508355162,0.63811353,33853.0,33849.0,0.24057544]
[1625508355258,0.48115088,33850.0,33849.0,0.24057544]
[1625508355359,0.79385088,33850.0,33849.0,0.24057544]
[1625508355460,0.85285088,33850.0,33849.0,0.24057544]
[1625508355558,0.91185088,33850.0,33849.0,0.24057544]
[1625508356263,1.41185088,33850.0,33845.0,0.24057544]
[1625508356362,0.91185088,33850.0,33841.0,0.24057544]
[1625508356463,0.5,33849.0,33841.0,0.24057544]
[1625508356563,0.559,33849.0,33841.0,0.24057544]
[1625508356662,0.059,33849.0,33841.0,0.24057544]
[1625508356763,0.638298,33849.0,33841.0,0.24057544]
[1625508357267,0.48115088,33842.0,33841.0,0.24057544]
[1625508357366,0.80645088,33842.0,33841.0,0.24057544]
[1625508358320,0.48115088,33842.0,33841.0,0.24057544]
[1625508364178,0.52059809,33850.0,33837.0,0.057]
[1625508364280,0.52059809,33850.0,33832.0,4.7874]
[1625508364380,0.63859809,33850.0,33837.0,0.059]
[1625508365032,0.83859809,33850.0,33837.0,0.059]
[1625508365133,0.318,33850.0,33837.0,0.059]
[1625508365235,0.118,33850.0,33837.0,0.059]
[1625508365334,0.118,33850.0,33840.0,0.24057544]
[1625508365335,0.24057544,33841.0,33840.0,0.24057544]
[1625508366641,0.24057544,33848.0,33840.0,0.29957544]
[1625508366755,0.24057544,33848.0,33840.0,0.62686544]
[1625508367296,0.24057544,33848.0,33847.0,0.48115088]
[1625508367395,0.24057544,33848.0,33847.0,0.72093088]
[1625508367739,0.24057544,33848.0,33847.0,0.77993088]
[1625508368391,0.44057544,33853.0,33847.0,0.77993088]
[1625508369345,0.44057544,33853.0,33852.0,0.24057544]
[1625508370250,0.2,33853.0,33852.0,0.24057544]
[1625508370350,0.2,33855.0,33852.0,0.24057544]
[1625508370451,0.2,33853.0,33852.0,0.24057544]
[1625508373008,0.259,33853.0,33852.0,0.24057544]
[1625508373823,0.48084,33853.0,33852.0,0.24057544]
[1625508373933,0.53984,33853.0,33852.0,0.24057544]
[1625508375061,1.75460982,33853.0,33852.0,0.24057544]
[1625508375164,1.75460982,33853.0,33847.0,0.24057544]
[1625508375362,0.48115088,33848.0,33847.0,0.24057544]
[1625508375559,0.54015088,33848.0,33847.0,0.24057544]
[1625508375664,0.59915088,33848.0,33847.0,0.24057544]
[1625508375962,0.79915088,33848.0,33847.0,0.24057544]
[1625508376114,3.05552594,33848.0,33847.0,0.24057544]
[1625508376863,2.85552594,33848.0,33847.0,0.24057544]
[1625508377120,1.81418881,33848.0,33847.0,0.24057544]
[1625508377866,2.85515537,33848.0,33847.0,0.24057544]
[1625508377996,3.05515537,33848.0,33847.0,0.24057544]
[1625508378169,2.85515537,33848.0,33847.0,0.24057544]
[1625508378671,1.31990621,33848.0,33847.0,0.24057544]
[1625508378872,1.11990621,33848.0,33847.0,0.24057544]
[1625508379974,1.11990621,33848.0,33841.0,0.057]
[1625508380074,0.2,33847.0,33840.0,0.24057544]
[1625508380175,0.77938768,33847.0,33840.0,0.24057544]
[1625508380274,1.33838768,33847.0,33840.0,0.24057544]
[1625508380474,1.33838768,33847.0,33837.0,0.24057544]
[1625508380675,5.32774393,33845.0,33837.0,0.24057544]
[1625508380775,0.7,33844.0,33837.0,0.24057544]
[1625508380876,0.759,33844.0,33837.0,0.24057544]
[1625508380975,0.818,33844.0,33837.0,0.24057544]
[1625508381076,0.5202685,33843.0,33837.0,0.24057544]
[1625508381177,0.2,33842.0,33837.0,0.24057544]
[1625508381275,0.259,33842.0,33837.0,0.24057544]
[1625508381375,0.48115088,33838.0,33837.0,0.24057544]
[1625508381475,0.86733088,33838.0,33837.0,0.24057544]
[1625508381575,0.92633088,33838.0,33837.0,0.24057544]
[1625508385379,0.92633088,33838.0,33833.0,0.24057544]
[1625508387436,0.24057544,33834.0,33833.0,0.24057544]
[1625508387534,0.29957544,33834.0,33833.0,0.24057544]
[1625508387735,0.49957544,33834.0,33828.0,0.057]
[1625508387835,0.55857544,33834.0,33815.0,1.0001]
[1625508388038,0.55857544,33834.0,33815.0,1.4442914]
[1625508388137,0.55857544,33834.0,33815.0,0.4441914]
[1625508388238,0.55857544,33834.0,33816.0,0.00350273]
[1625508388688,0.55857544,33834.0,33816.0,0.06250273]
[1625508388787,0.55857544,33834.0,33816.0,0.059]
[1625508389090,0.55857544,33834.0,33817.0,0.00350273]
[1625508389289,1.05857544,33834.0,33817.0,0.06250273]
[1625508389390,0.48115088,33818.0,33817.0,0.00350273]
[1625508389593,0.70496088,33818.0,33816.0,0.24057544]
[1625508389892,0.70496088,33818.0,33817.0,0.00350295]
[1625508390600,0.76396088,33818.0,33817.0,0.00350295]
[1625508390698,0.70496088,33818.0,33817.0,0.00350295]
[1625508390997,0.76396088,33818.0,33817.0,0.00350295]
[1625508391097,0.70496088,33818.0,33817.0,0.00350295]
[1625508391200,0.70496088,33818.0,33816.0,0.24057544]
[1625508391500,0.70496088,33818.0,33817.0,0.00350314]
[1625508392001,0.70496088,33818.0,33816.0,0.24057544]
[1625508392472,0.76396088,33818.0,33816.0,0.24057544]
[1625508392550,0.70496088,33818.0,33816.0,0.24057544]
[1625508392749,0.76396088,33818.0,33816.0,0.24057544]
[1625508392950,0.70496088,33818.0,33816.0,0.24057544]
[1625508393251,0.76396088,33818.0,33816.0,0.24057544]
[1625508393502,0.76396088,33818.0,33816.0,7.544e-05]
[1625508393602,0.82296088,33818.0,33810.0,0.057]
[1625508393705,0.5,33817.0,33806.0,0.24057544]
[1625508393803,0.559,33817.0,33807.0,0.057]
[1625508393903,0.618,33817.0,33807.0,0.057]
[1625508394203,0.618,33817.0,33806.0,0.24057544]
[1625508394702,0.2,33816.0,33799.0,0.4468025]
[1625508394806,0.5,33815.0,33799.0,0.4468025]
[1625508395005,0.559,33815.0,33799.0,0.4468025]
[1625508395141,0.618,33815.0,33795.0,1.48926394]
[1625508395205,0.618,33815.0,33795.0,0.44672477]
[1625508395402,0.72172632,33796.0,33795.0,0.44672477]
[1625508395503,0.72172632,33796.0,33795.0,0.50572477]
[1625508395603,1.03755632,33796.0,33795.0,0.50572477]
[1625508395703,1.03755632,33796.0,33795.0,0.059]
[1625508395803,1.03755632,33796.0,33791.0,0.29757544]
[1625508395903,1.03755632,33796.0,33791.0,0.29957544]
[1625508396207,1.03755632,33796.0,33791.0,0.35857544]
[1625508396305,1.09655632,33796.0,33792.0,0.00350471]
[1625508396504,1.09655632,33796.0,33791.0,0.24057544]
[1625508396655,1.09655632,33796.0,33791.0,0.29957544]
[1625508396855,1.09655632,33796.0,33791.0,0.24057544]
[1625508397155,1.09655632,33796.0,33788.0,0.24057544]
[1625508397461,0.48115088,33789.0,33786.0,0.50676418]
[1625508397558,0.73869088,33789.0,33786.0,0.44976418]
[1625508397658,0.73869088,33789.0,33786.0,0.50876418]
[1625508397760,0.73869088,33789.0,33786.0,0.059]
[1625508397958,0.73869088,33789.0,33784.0,1.29061088]
[1625508398160,0.73869088,33789.0,33785.0,0.45081675]
[1625508398460,0.73869088,33789.0,33785.0,0.50981675]
[1625508398563,0.73869088,33789.0,33785.0,0.45081675]
[1625508398796,0.73869088,33789.0,33784.0,0.24057544]
[1625508398961,0.73869088,33789.0,33784.0,0.29957544]
[1625508399260,0.73869088,33789.0,33784.0,0.24057544]
[1625508399462,0.24057544,33785.0,33784.0,0.24057544]
[1625508399562,0.24057544,33785.0,33784.0,0.29957544]
[1625508400214,0.24057544,33785.0,33784.0,0.24057544]
[1625508400314,0.35857544,33785.0,33780.0,0.057]
[1625508400432,0.35857544,33785.0,33779.0,1.05262346]
[1625508400516,0.35857544,33785.0,33779.0,0.45114969]
[1625508400613,0.85857544,33785.0,33779.0,0.21214969]
[1625508401016,0.85857544,33785.0,33770.0,0.60237928]
[1625508401224,0.35857544,33785.0,33771.0,0.057]
[1625508401319,0.35857544,33785.0,33771.0,0.116]
[1625508401420,0.29957544,33785.0,33771.0,0.116]
[1625508401586,0.48115088,33772.0,33771.0,0.41557544]
[1625508401647,0.24057544,33772.0,33771.0,0.35857544]
[1625508401936,0.24057544,33772.0,33771.0,0.36208135]
[1625508402568,0.24057544,33779.0,33771.0,0.36208135]
[1625508402708,0.24057544,33779.0,33771.0,0.57117135]
[1625508402789,0.24057544,33779.0,33772.0,0.059]
[1625508402881,0.24057544,33779.0,33775.0,4.354]
[1625508403069,0.24057544,33779.0,33775.0,4.413]
[1625508403169,0.24057544,33785.0,33775.0,4.472]
[1625508403269,0.24057544,33785.0,33776.0,0.00350571]
[1625508403473,0.24057544,33785.0,33784.0,0.48115088]
[1625508403571,0.24057544,33785.0,33784.0,0.77928088]
[1625508403673,0.24057544,33785.0,33784.0,0.83828088]
[1625508403874,0.24057544,33785.0,33784.0,0.89728088]
[1625508405677,0.24057544,33785.0,33784.0,0.9007863]
[1625508406846,0.24057544,33788.0,33784.0,0.9007863]
[1625508407034,0.24057544,33788.0,33785.0,0.059]
[1625508407230,0.24057544,33788.0,33785.0,0.12150493]
[1625508407481,0.24057544,33788.0,33786.0,0.00350502]
[1625508407681,0.24057544,33788.0,33786.0,0.12150502]
[1625508407780,0.24057544,33795.0,33786.0,0.12150502]
[1625508407881,0.24057544,33795.0,33786.0,0.17850502]
[1625508407981,0.24057544,33799.0,33786.0,0.17850502]
[1625508408080,0.24057544,33799.0,33788.0,0.059]
[1625508408284,0.24057544,33799.0,33789.0,0.00350485]
[1625508408435,0.24057544,33799.0,33789.0,0.06250485]
[1625508408884,0.24057544,33799.0,33790.0,0.00350461]
[1625508408988,0.24057544,33799.0,33790.0,0.12150461]
[1625508409088,0.24057544,33799.0,33790.0,0.17850461]
[1625508409385,0.24057544,33799.0,33791.0,0.00350444]
[1625508409495,0.24057544,33803.0,33798.0,0.72172632]
[1625508409587,0.24057544,33803.0,33798.0,0.99271632]
[1625508409685,0.24057544,33803.0,33798.0,1.05171632]
[1625508409786,0.24057544,33806.0,33798.0,1.05171632]
[1625508409885,0.24057544,33806.0,33799.0,0.00350422]
[1625508409987,0.24057544,33806.0,33799.0,0.06250422]
[1625508410136,0.24057544,33806.0,33799.0,0.12150422]
[1625508410235,0.24057544,33806.0,33801.0,5.1726]
[1625508410334,0.24057544,33806.0,33801.0,5.2316]
[1625508410435,0.24057544,33806.0,33801.0,5.2906]
[1625508410640,0.24057544,33806.0,33802.0,0.00350398]
[1625508410738,0.24057544,33806.0,33802.0,0.12150398]
[1625508411039,0.24057544,33806.0,33803.0,0.0896]
[1625508411140,0.24057544,33806.0,33803.0,0.06250394]
[1625508411240,0.24057544,33806.0,33803.0,0.12150394]
[1625508411440,0.24057544,33806.0,33804.0,0.00350394]
[1625508411542,0.24057544,33809.0,33805.0,0.74322088]
[1625508411639,0.24057544,33813.0,33805.0,0.80222088]
[1625508411743,0.24057544,33816.0,33805.0,0.80222088]
[1625508411842,0.06330681,45911.0,33805.0,0.80222088]
[1625508411843,0.74590042,33834.0,33806.0,0.057]
[1625508411942,0.68890042,33834.0,33806.0,0.06050372]
[1625508412041,0.68890042,33834.0,33806.0,0.17850372]
[1625508412242,0.68884914,33838.0,33807.0,0.00350327]
[1625508412440,0.68884914,33838.0,33807.0,0.06250327]
[1625508412644,0.68897078,33839.0,33807.0,0.06250327]
[1625508412748,0.68897078,33839.0,33808.0,0.00350311]
[1625508412845,0.9787,33832.0,33808.0,0.00350311]
[1625508412942,0.9787,33832.0,33808.0,0.06250311]
[1625508413049,1.0377,33832.0,33808.0,0.06250311]
[1625508413243,1.0377,33832.0,33809.0,0.00350353]
[1625508413444,0.9787,33832.0,33809.0,0.06250353]
[1625508413547,0.24057544,33817.0,33816.0,0.24057544]
[1625508413644,0.43154544,33817.0,33816.0,0.24057544]
[1625508413844,0.48854544,33817.0,33816.0,0.24057544]
[1625508414149,0.43154544,33817.0,33816.0,0.24057544]
[1625508414446,0.49054544,33817.0,33816.0,0.24057544]
[1625508414546,0.54954544,33817.0,33816.0,0.24057544]
[1625508414847,0.49054544,33817.0,33816.0,0.24057544]
[1625508414947,0.54754544,33817.0,33816.0,0.24057544]
[1625508415501,0.78812088,33817.0,33816.0,0.24057544]
[1625508416121,0.78812088,33817.0,33805.0,0.48115088]
[1625508416221,0.84712088,33817.0,33794.0,0.9571]
[1625508416305,0.84712088,33817.0,33791.0,0.5985559]
[1625508416406,0.84712088,33817.0,33798.0,1.1164]
[1625508416503,0.84712088,33817.0,33799.0,0.00350466]
[1625508416606,0.84712088,33817.0,33799.0,0.12150466]
[1625508416705,1.34712088,33817.0,33799.0,0.12150466]
[1625508416804,1.34712088,33817.0,33799.0,0.00350466]
[1625508417004,1.34712088,33817.0,33800.0,0.00350479]
[1625508417204,1.34712088,33817.0,33800.0,0.06250479]
[1625508417506,0.24057544,33804.0,33801.0,0.00350491]
[1625508417605,0.35567,33803.0,33801.0,0.00350491]
[1625508417806,0.41467,33803.0,33801.0,0.00350491]
[1625508418315,0.41467,33803.0,33797.0,0.24057544]
[1625508418861,0.41467,33803.0,33798.0,0.00350524]
[1625508419362,0.41467,33803.0,33794.0,0.00350551]
[1625508419465,0.91467,33803.0,33794.0,0.00350551]
[1625508419564,0.48115088,33795.0,33794.0,0.00350551]
[1625508419663,0.78938088,33795.0,33794.0,0.00350551]
[1625508419764,0.84838088,33795.0,33794.0,0.00350551]
[1625508419927,0.84838088,33795.0,33791.0,0.00350567]
[1625508420017,0.84838088,33795.0,33791.0,0.06250567]
[1625508420322,0.78938088,33795.0,33791.0,0.06250567]
[1625508420415,0.84838088,33795.0,33792.0,0.00350565]
[1625508420519,0.79138088,33795.0,33792.0,0.00350565]
[1625508420827,0.73238088,33795.0,33792.0,0.06250565]
[1625508421220,0.73238088,33795.0,33793.0,0.00350552]
[1625508421368,0.73238088,33795.0,33793.0,0.06250552]
[1625508421768,0.73238088,33795.0,33794.0,0.00350549]
[1625508421868,0.48115088,33795.0,33794.0,0.00350549]
[1625508421968,0.48115088,33795.0,33794.0,0.06250549]
[1625508423676,0.48115088,33795.0,33794.0,0.26886549]
[1625508425629,0.48115088,33795.0,33794.0,0.50944093]
[1625508427136,0.48115088,33795.0,33794.0,0.56844093]
[1625508428943,0.24057544,33795.0,33794.0,0.56844093]
[1625508429048,0.24057544,33804.0,33794.0,0.56844093]
[1625508429446,0.24057544,33804.0,33795.0,0.00350476]
[1625508429544,0.24057544,33804.0,33795.0,0.06250476]
[1625508429643,0.24057544,33804.0,33803.0,0.57003544]
[1625508430044,0.24057544,33804.0,33803.0,0.57354015]
[1625508432045,0.29757544,33804.0,33803.0,0.30308015]
[1625508432099,0.29757544,33804.0,33803.0,0.06250471]
[1625508432196,0.29757544,33804.0,33803.0,0.00350471]
[1625508432347,0.35657544,33804.0,33803.0,0.00350471]
[1625508432649,0.35657544,33804.0,33798.0,0.00350531]
[1625508432751,0.57788544,33804.0,33798.0,0.00350531]
[1625508432849,0.57788544,33804.0,33798.0,0.06250531]
[1625508433252,0.51888544,33804.0,33798.0,0.06250531]
[1625508433500,0.51888544,33804.0,33799.0,0.06250516]
[1625508433501,0.57788544,33804.0,33799.0,0.06250516]
[1625508433600,0.24057544,33800.0,33799.0,0.06250516]
[1625508437309,0.24057544,33800.0,33799.0,0.00350516]
[1625508437712,0.24057544,33800.0,33798.0,0.00350483]
[1625508437860,0.24057544,33800.0,33798.0,0.06250483]
[1625508437962,0.057,33799.0,33798.0,0.06250483]
[1625508438866,0.24057544,33800.0,33798.0,0.06250483]
[1625508438965,0.29757544,33800.0,33798.0,0.06250483]
[1625508439070,0.35657544,33800.0,33798.0,0.06250483]
[1625508439167,0.29757544,33800.0,33798.0,0.06250483]
[1625508439267,0.29757544,33800.0,33799.0,0.00350497]
[1625508439368,0.35657544,33800.0,33799.0,0.06250497]
[1625508439471,0.29757544,33800.0,33799.0,0.06250497]
[1625508439571,0.24057544,33800.0,33799.0,0.06250497]
[1625508440771,0.29757544,33800.0,33799.0,0.06250497]
[1625508440888,0.29757544,33800.0,33799.0,0.00350497]
[1625508441102,0.35657544,33800.0,33799.0,0.00350497]
[1625508441372,0.35657544,33800.0,33795.0,0.00350531]
[1625508441574,0.35657544,33800.0,33795.0,0.06250531]
[1625508441673,0.48115088,33796.0,33795.0,0.06250531]
[1625508441776,0.53815088,33796.0,33795.0,0.06250531]
[1625508441873,0.76236088,33796.0,33795.0,0.06250531]
[1625508441972,0.76236088,33796.0,33795.0,0.059]
[1625508442180,0.76236088,33796.0,33795.0,0.06250533]
[1625508443433,0.82136088,33796.0,33795.0,0.06250533]
[1625508444933,0.76236088,33796.0,33795.0,0.06250533]
[1625508445133,0.82136088,33796.0,33795.0,0.06250533]
[1625508446597,0.59715088,33796.0,33795.0,0.06250533]
[1625508446784,0.48115088,33796.0,33795.0,0.12150533]
[1625508446889,0.48115088,33796.0,33795.0,0.42306533]
[1625508446985,0.057,33803.0,33795.0,0.42306533]
[1625508447086,0.057,33803.0,33795.0,0.36406533]
[1625508447289,0.057,33803.0,33796.0,0.00350491]
[1625508447386,0.057,33803.0,33796.0,0.06250491]
[1625508447488,0.057,33803.0,33796.0,0.12150491]
[1625508447639,0.057,33803.0,33802.0,0.48115088]
[1625508447739,0.057,33803.0,33802.0,0.79754088]
[1625508447840,0.057,33803.0,33802.0,0.85654088]
[1625508448091,0.057,33803.0,33802.0,0.86004565]
[1625508449004,0.24057544,33808.0,33802.0,0.86004565]
[1625508449109,0.6957879,33810.0,33802.0,0.91904565]
[1625508449436,0.6957879,33810.0,33803.0,0.00350419]
[1625508449500,2.30649938,33815.0,33803.0,0.00350419]
[1625508449501,0.9151,33815.0,33803.0,0.00350419]
[1625508449621,0.9151,33815.0,33803.0,0.06250419]
[1625508449692,0.9151,33815.0,33813.0,0.72172632]
[1625508449795,0.69574938,33817.0,33813.0,0.98926632]
[1625508449998,0.69574938,33817.0,33813.0,0.99277033]
[1625508450095,0.29757544,33814.0,33813.0,0.99277033]
[1625508451450,0.29757544,33814.0,33813.0,0.93377033]
[1625508451951,0.29757544,33814.0,33813.0,0.99277033]
[1625508452052,0.29757544,33814.0,33813.0,0.93377033]
[1625508452252,0.29757544,33814.0,33813.0,0.72523033]
[1625508452405,0.29757544,33814.0,33813.0,0.78423033]
[1625508452905,0.29757544,33814.0,33813.0,0.72523033]
[1625508453003,0.29757544,33814.0,33813.0,0.72172632]
[1625508453103,0.64598825,33814.0,33813.0,0.72172632]
[1625508453405,0.29757544,33814.0,33813.0,0.72172632]
[1625508453705,0.35657544,33814.0,33813.0,0.72172632]
[1625508453804,0.29757544,33814.0,33813.0,0.72172632]
[1625508454056,0.35657544,33814.0,33813.0,0.72172632]
[1625508454157,0.6460022,33814.0,33813.0,0.72172632]
[1625508454258,0.7060022,33814.0,33813.0,0.72172632]
[1625508454357,0.6470022,33814.0,33813.0,0.72172632]
[1625508454470,0.7060022,33814.0,33813.0,0.72172632]
[1625508454567,0.7650022,33814.0,33813.0,0.72172632]
[1625508454658,1.11331472,33814.0,33813.0,0.72172632]
[1625508454759,1.11331472,33814.0,33804.0,0.31025519]
[1625508454857,1.39638472,33814.0,33804.0,0.36925519]
[1625508455058,0.34849486,33808.0,33805.0,0.00350444]
[1625508455157,0.29031,33807.0,33805.0,0.00350444]
[1625508455359,0.34931,33807.0,33800.0,0.31067692]